Cogmind - Beta 14 @@@ ROGUE MODE // 2025.04.11 @ 23:19:36 Player: CrossedViper Result: Destroyed by G-47 Trooper with Particle Gun Performance ------------- Evolutions (2) 1000 Regions Visited (9) 1800 Robots Destroyed (103) 515 Value Destroyed (3429) 3429 Prototype IDs (26) 520 Alien Tech Used (0) 0 Bonus (495) 495 TOTAL SCORE: 7759 Bonus ------- High Alert Combat Kills 30 Entered Garrisons 200 Aligned with FarCom 300 Friendly Fire -35 Cogmind --------- Core Integrity 0/550 Matter 251/300 Energy 98/100 System Corruption 0% Temperature Cool (9) Movement Core (50) Location -8/Storage Parts ------- > --- POWER (1) -------- (None) > --- PROPULSION (3) --- Medium Treads Medium Treads > --- UTILITY (4) ------ Improved Heat Sink Advanced Visual Processing Unit > --- WEAPON (3) ------- (None) > --- INVENTORY (5) ---- Light Nuclear Core Improved VTOL Module Improved VTOL Module Improved VTOL Module Peak State ------------ > --- POWER ------------ Enhanced Nuclear Core > --- PROPULSION ------- Light Treads Light Treads Light Treads > --- UTILITY ---------- Improved Heat Sink High-capacity Storage Unit Hardened Medium Armor Plating Hardened Medium Armor Plating > --- WEAPON ----------- Shotgun Gauss Rifle Katana > --- INVENTORY -------- Nuclear Core Light Nuclear Core Light Nuclear Core Enhanced Nuclear Core Medium Treads Medium Treads Medium Treads Medium Treads Improved VTOL Module Improved VTOL Module Improved VTOL Module Improved VTOL Module Improved Heat Sink Advanced Visual Processing Unit Relay Coupler [Heavy] [Rating: 32] Favorites ----------- Power Light Ion Engine Engine Light Ion Engine Power Core Enhanced Nuclear Core Propulsion Light Treads Treads Light Treads Flight Unit Improved VTOL Module Utility Heat Sink Device Heat Sink Storage High-capacity Storage Unit Processor Targeting Computer Hackware Hacking Suite Protection Hardened Light Armor Plating Weapon Pulse Rifle Energy Gun Pulse Rifle Ballistic Gun Light Assault Rifle Launcher Rocket Launcher Slashing Weapon Katana Build | -11 -10 -10 -9 -9 -9 -8 -8 -8 -8 ------- Run | Yrd Mat Min Mat Min Exi Min Mat Gar Sto Slots Evolved 4 | . . . 2 . . . 2 . . Power . | . . . . . . . . . . Propulsion 1 | . . . . . . . 1 . . Utility 2 | . . . 2 . . . . . . Weapon 1 | . . . . . . . 1 . . Parts Attached 90 | 6 11 . 30 2 . 7 15 19 . Power 11 | 1 3 . 2 1 . . 3 1 . Engine 8 | 1 3 . 2 1 . . 1 . . Core 3 | . . . . . . . 2 1 . Reactor . | . . . . . . . . . . Propulsion 28 | 2 1 . 11 1 . . 5 8 . Treads 27 | 2 1 . 11 1 . . 4 8 . Leg . | . . . . . . . . . . Wheel . | . . . . . . . . . . Hover . | . . . . . . . . . . Flight 1 | . . . . . . . 1 . . Utility 26 | 1 3 . 11 . . 3 3 5 . Device 7 | . 1 . 3 . . . 1 2 . Storage 8 | 1 2 . 3 . . 1 1 . . Processor 2 | . . . . . . 1 . 1 . Hackware 1 | . . . . . . 1 . . . Protection 8 | . . . 5 . . . 1 2 . Artifact . | . . . . . . . . . . Weapon 25 | 2 4 . 6 . . 4 4 5 . Energy Gun 11 | . . . 6 . . 1 3 1 . Energy Cannon . | . . . . . . . . . . Ballistic Gun 10 | 2 4 . . . . 1 1 2 . Ballistic Cannon . | . . . . . . . . . . Launcher 1 | . . . . . . 1 . . . Special Weapon . | . . . . . . . . . . Impact Weapon . | . . . . . . . . . . Slashing Weapon 3 | . . . . . . 1 . 2 . Piercing Weapon . | . . . . . . . . . . Special Melee Weapon . | . . . . . . . . . . Unidentified Prototypes 3 | . . . . . . . 3 . . Parts Lost 30 | . 5 . 6 1 . 1 1 16 . Power 5 | . 3 . . 1 . 1 . . . Propulsion 10 | . 1 . 3 . . . . 6 . Utility 8 | . . . 3 . . . 1 4 . Weapon 7 | . 1 . . . . . . 6 . Highest Loss Streak 6 | . 2 . 2 2 . 1 1 6 . To Critical Strikes . | . . . . . . . . . . Average Slot Usage (%) 86 | . 92 80 91 80 88 62 94 93 44 Engine 6 | . 13 4 10 3 11 . . . . Core 1 | . . . . . . . 6 8 . Treads 24 | . 27 28 21 22 22 22 27 26 26 Device 10 | . 7 14 14 11 11 11 8 8 9 Storage 9 | . 14 4 11 11 11 4 7 8 . Processor 2 | . . . . . . 3 9 4 9 Hackware 2 | . . . . . . 10 9 3 . Protection 5 | . . . 12 11 11 . . 9 . Energy Gun 11 | . . . 21 22 22 . 11 6 . Ballistic Gun 9 | . 27 28 . . . . 11 12 . Slashing Weapon 1 | . . . . . . 9 2 3 . Peak Build Rating 32 | 6 8 7 17 15 15 15 29 32 19 Average Rating 15 | 4 6 5 13 14 15 10 23 29 18 On Entrance 12 | . 6 7 5 15 15 15 13 29 19 Naked Turns . | . . . . . . . . . . Heaviest Build 74 | 11 28 28 58 39 35 43 58 74 1 Greatest Support 60 | 40 40 40 40 40 40 40 60 60 3 Greatest Overweight (x) 2 | . . . 2 . . 1 1 1 . Average Overweight (x) . | . . . . . . . . . . Largest Inventory Capacity 20 | 8 15 15 20 15 15 20 20 20 5 Average Capacity 14 | 7 10 8 16 15 15 11 16 19 5 Most Carried 17 | 3 10 9 17 11 11 11 17 16 4 Average Carried 9 | 1 7 6 12 10 11 5 10 14 4 Final Capacity 20 | 8 15 5 15 15 15 5 20 5 5 Final Carried 16 | 3 9 5 10 11 11 5 16 4 4 Class Distribution -------------------- 54% | Scavenger-Mutant 31% | Mutant 13% | Scavenger-Gunner Dominant Class ---------------- Mutant | -10/Materials Mutant | -10/Mines Scavenger-Mutant | -9/Materials Mutant | -9/Mines Scavenger-Mutant | -9/Exiles Scavenger-Mutant | -8/Mines Scavenger-Gunner | -8/Materials Scavenger-Mutant | -8/Garrison Mutant | -8/Storage Resources | -11 -10 -10 -9 -9 -9 -8 -8 -8 -8 ----------- Run | Yrd Mat Min Mat Min Exi Min Mat Gar Sto Matter Collected 1604 | 161 436 10 280 10 . 87 406 214 . Remotely . | . . . . . . . . . . Salvage Created 4293 | . 636 48 1470 110 . 163 1288 578 . Parts 237 | . 47 2 79 7 . 6 72 24 . Haulers Intercepted 6 | . 2 . 1 . . . 3 . . Recyclers Shooed 5 | . . . 3 . . 1 1 . . Parts Field Recycled . | . . . . . . . . . . Retrieved Matter . | . . . . . . . . . . Parts Self-Destructed . | . . . . . . . . . . Prevented . | . . . . . . . . . . Kills | -11 -10 -10 -9 -9 -9 -8 -8 -8 -8 ------- Run | Yrd Mat Min Mat Min Exi Min Mat Gar Sto Combat Hostiles Destroyed 74 | . 13 1 23 4 . 4 18 11 . Melee 4 | . . . . . . 1 3 . . Guns 69 | . 13 1 23 4 . 2 15 11 . AOE 1 | . . . . . . 1 . . . Classes Destroyed 13 | . 6 . 3 1 . 2 . 1 . Worker 5 | . . . 2 . . . 3 . . Builder 1 | . 1 . . . . . . . . Tunneler 1 | . . . . . . 1 . . . Hauler 6 | . 2 . 1 . . . 3 . . Recycler 8 | . . . 5 . . . 3 . . Operator 2 | . 1 . 1 . . . . . . Watcher 6 | . 2 . 3 . . . 1 . . Swarmer 12 | . 3 . 4 2 . . 3 . . Grunt 40 | . 10 1 10 1 . 3 7 8 . Duelist 1 | . . . . 1 . . . . . Sentry 17 | . . . 9 . . . 7 1 . Specialist 2 | . . . . . . . . 2 . Hunter 2 | . . . . . . 1 1 . . Best Kill Streak 9 | . 3 1 6 2 . 3 9 9 . Combat Bots Only 9 | . 3 1 4 2 . 3 3 9 . Max Kills in Single Turn 2 | . 2 1 2 2 . 1 2 1 . Gunslinging 1 | . 1 . 1 1 . . 1 . . Exploded 1 | . . . . . . 1 . . . Melee 1 | . . . . . . 1 1 . . Uniques/NPCs Destroyed . | . . . . . . . . . . Combat | -11 -10 -10 -9 -9 -9 -8 -8 -8 -8 -------- Run | Yrd Mat Min Mat Min Exi Min Mat Gar Sto Hostile Shots Fired 555 | . 82 17 136 8 . 39 75 168 30 Missed 159 | . 19 6 36 3 . 14 27 43 11 Damage Taken 6092 | . 811 175 1195 68 . 449 706 2456 232 Core 1009 | . 108 42 195 12 . 94 119 385 54 Absorbed by Shields 70 | . . . . . . . . 70 . Regen/Repaired (Parts) 196 | . . . 147 . . . 49 . . Core Remaining (%) 54 | 100 . 40 . . . 24 . . . Volleys Fired 264 | . 78 5 79 9 1 6 54 32 . Largest 3 | . 2 2 2 2 2 2 3 3 . Hottest 140 | . 40 40 126 126 126 126 135 140 . Shots Fired 573 | . 155 10 155 18 2 10 145 78 . Gun 571 | . 155 10 155 18 2 8 145 78 . Cannon . | . . . . . . . . . . Launcher 2 | . . . . . . 2 . . . Special . | . . . . . . . . . . Kinetic 275 | . 155 10 . . . . 75 35 . Thermal 296 | . . . 155 18 2 8 70 43 . Explosive 2 | . . . . . . 2 . . . Electromagnetic . | . . . . . . . . . . Robot Hit Streak 17 | . 12 8 14 7 . 7 17 13 . Robot Miss Streak 7 | . 7 1 3 3 . 1 4 2 . Penetration Max 1 | . . . . . . . 1 . . Secondary Targets 13 | . 1 . 4 1 . . 3 4 . Max Gunslinging Chain 1 | . 1 . 1 1 . . 1 1 . Shots Hit Robots 424 | . 106 8 113 10 . 13 101 73 . Core Hits 180 | . 42 4 50 5 . 10 43 26 . Critical Kills 1 | . 1 . . . . . . . . Critical Parts Destroyed 3 | . 2 . . . . . 1 . . Critical Strikes 27 | . 3 . 12 . . 1 7 4 . Burn 19 | . . . 12 . . 1 4 2 . Destroy 4 | . 3 . . . . . 1 . . Sever 4 | . . . . . . . 2 2 . Melee Attacks 38 | . . . . . . 6 9 23 . Impact . | . . . . . . . . . . Slashing 38 | . . . . . . 6 9 23 . Piercing . | . . . . . . . . . . Sneak Attacks 5 | . . . . . . 3 2 . . Combat Hostiles . | . . . . . . . . . . Follow-up Attacks . | . . . . . . . . . . Damage Inflicted 7342 | . 1087 65 1676 198 . 637 2117 1562 . Guns 5968 | . 1077 65 1670 172 . 119 1778 1087 . Cannons . | . . . . . . . . . . Explosions 235 | . . . . . . 235 . . . Melee 1071 | . . . . . . 267 329 475 . Ramming 68 | . 10 . 6 26 . 16 10 . . Kinetic 2588 | . 1077 65 . . . . 959 487 . Thermal 3380 | . . . 1670 172 . 119 819 600 . Explosive 235 | . . . . . . 235 . . . Electromagnetic . | . . . . . . . . . . Impact . | . . . . . . . . . . Slashing 1071 | . . . . . . 267 329 475 . Piercing . | . . . . . . . . . . Highest Corruption 1 | . 1 1 . . . . . . . Average Corruption 1 | . 1 1 . . . . . . . Corruption Purged . | . . . . . . . . . . Corruption Blocked . | . . . . . . . . . . Effects 3 | . 2 1 . . . . . . . Message Errors 1 | . 1 . . . . . . . . Energy Discharges 1 | . . 1 . . . . . . . Data Loss (minor) 1 | . 1 . . . . . . . . Overload Shots . | . . . . . . . . . . Overflow Damage 44 | . . . . . . 28 16 . . Projectiles . | . . . . . . . . . . Explosions . | . . . . . . . . . . Melee 44 | . . . . . . 28 16 . . Knockbacks 1 | . . . . 1 . . . . . Impact 1 | . . . . 1 . . . . . Kinetic . | . . . . . . . . . . Secondary . | . . . . . . . . . . Self-Inflicted Damage 62 | . . . . . . 62 . . . Shots 2 | . . . . . . 2 . . . Rammed 14 | . 4 . . 3 . 4 3 . . Targets Rammed 15 | . 4 . 1 3 . 4 3 . . Kicked . | . . . . . . . . . . Crushed 1 | . . . 1 . . . . . . Highest Temperature 346 | . 36 18 324 213 42 168 264 346 . Average Temperature 81 | . 12 11 77 84 25 75 80 147 . Received Heat Transfer 2484 | . 462 48 504 12 . 144 324 900 90 Effects 4 | . . . 4 . . . . . . Interference 4 | . . . 4 . . . . . . Siege Activations . | . . . . . . . . . . Robots Corrupted . | . . . . . . . . . . Combat Hostiles . | . . . . . . . . . . Parts Fried . | . . . . . . . . . . Impact Corruptions . | . . . . . . . . . . Robots Melted . | . . . . . . . . . . Combat Hostiles . | . . . . . . . . . . Parts Melted 22 | . . . 14 . . . 5 3 . Heat Transferred 9065 | . . . 4884 370 . 333 2072 1406 . Parts Sabotaged . | . . . . . . . . . . Parts Stolen . | . . . . . . . . . . Parts Stripped . | . . . . . . . . . . Power Chain Reactions . | . . . . . . . . . . Alert | -11 -10 -10 -9 -9 -9 -8 -8 -8 -8 ------- Run | Yrd Mat Min Mat Min Exi Min Mat Gar Sto Peak Influence 453 | . 274 77 422 200 . 179 453 423 273 Initial 178 | . . 57 29 160 . . . 127 178 Average 164 | . 106 76 184 138 . 72 181 329 221 Maximum Alert Level 2 | . 1 . 2 1 . . 2 2 1 Low Security (%) 66 | 100 84 100 64 43 . 100 68 20 40 Level 1 24 | . 15 . 30 56 . . 21 32 60 Level 2 8 | . . . 4 . . . 9 46 . Level 3 . | . . . . . . . . . . Level 4 . | . . . . . . . . . . Level 5 . | . . . . . . . . . . High Security . | . . . . . . . . . . Max Security . | . . . . . . . . . . Squads Dispatched 11 | . 3 . 5 . . . 3 . . Investigation 7 | . 2 . 3 . . . 2 . . Extermination . | . . . . . . . . . . Reinforcement 3 | . 1 . 2 . . . . . . Assault . | . . . . . . . . . . Garrison 1 | . . . . . . . 1 . . Intercept . | . . . . . . . . . . Searches Triggered . | . . . . . . . . . . Construction Impeded . | . . . . . . . . . . Haulers Reinforced . | . . . . . . . . . . Active Scanning Responses . | . . . . . . . . . . Cargo Convoy Interrupts . | . . . . . . . . . . Stealth | -11 -10 -10 -9 -9 -9 -8 -8 -8 -8 --------- Run | Yrd Mat Min Mat Min Exi Min Mat Gar Sto Distress Signals 8 | . . . 4 . . . 4 . . Communications Jammed . | . . . . . . . . . . Distress Signals . | . . . . . . . . . . Times Spotted 136 | . 22 11 38 5 . 9 29 12 10 Peak Tracking Total 9 | . 4 9 6 4 9 5 5 6 7 Tactical Retreats 12 | . 2 2 1 1 . 2 1 . 3 Traps | -11 -10 -10 -9 -9 -9 -8 -8 -8 -8 ------- Run | Yrd Mat Min Mat Min Exi Min Mat Gar Sto Traps Triggered 7 | . 1 . 1 . . . . 4 1 Indirectly . | . . . . . . . . . . Trap Hack Attempts . | . . . . . . . . . . Triggered . | . . . . . . . . . . Disarmed . | . . . . . . . . . . Reprogrammed . | . . . . . . . . . . Reused . | . . . . . . . . . . Traps Extracted . | . . . . . . . . . . Installed . | . . . . . . . . . . Triggered . | . . . . . . . . . . Machines | -11 -10 -10 -9 -9 -9 -8 -8 -8 -8 ---------- Run | Yrd Mat Min Mat Min Exi Min Mat Gar Sto Machines Disabled 6 | . . . 1 . 2 1 . 2 . Max in Single Turn 1 | . . . 1 . 1 1 . 1 . Garrison Relay 2 | . . . . . . . . 2 . Machines Repaired . | . . . . . . . . . . Machines Dismantled . | . . . . . . . . . . Machines Sabotaged . | . . . . . . . . . . Overloaded Fab Kills . | . . . . . . . . . . Hacking | -11 -10 -10 -9 -9 -9 -8 -8 -8 -8 --------- Run | Yrd Mat Min Mat Min Exi Min Mat Gar Sto Machines Accessed 24 | . 4 . 6 . 2 . 6 3 3 Terminals 18 | . 3 . 5 . . . 4 3 3 Fabricators . | . . . . . . . . . . Repair Stations 2 | . . . 1 . . . 1 . . Recycling Units 1 | . 1 . . . . . . . . Scanalyzers . | . . . . . . . . . . Garrison Access 1 | . . . . . . . 1 . . Total Hacks 76 | . 15 . 23 . 2 . 22 3 11 Successful 39 | . 8 . 10 . 2 . 12 3 4 Failed 37 | . 7 . 13 . . . 10 . 7 Catastrophic 4 | . . . 3 . . . 1 . . Database Lockouts . | . . . . . . . . . . Manual 52 | . 15 . 17 . 1 . 16 . 3 Terminals 64 | . 14 . 19 . . . 17 3 11 Fabricators . | . . . . . . . . . . Repair Stations 8 | . . . 4 . . . 4 . . Recycling Units 1 | . 1 . . . . . . . . Scanalyzers . | . . . . . . . . . . Garrison Access 1 | . . . . . . . 1 . . Terminal Hacks 21 | . 3 . 5 . 2 . 6 3 2 Record 1 | . . . . . 1 . . . . Part Schematic 5 | . 1 . 3 . . . 1 . . Robot Analysis 4 | . 2 . 1 . . . 1 . . Emergency Access Points 1 | . . . . . . . . 1 . Terminal Index 1 | . . . . . . . 1 . . Alert Level 1 | . . . . . . . . . 1 Unreport Threat 2 | . . . . . . . 2 . . Zone Layout 3 | . . . 1 . . . 1 . 1 Patrol Navigation 1 | . . . . . . . . 1 . Security Stations 1 | . . . . . . . . 1 . Derelict Proto ID Bank 1 | . . . . . 1 . . . . Fabricator Hacks . | . . . . . . . . . . Repair Station Hacks 7 | . . . 4 . . . 3 . . Scan Component 4 | . . . 2 . . . 2 . . Repair 3 | . . . 2 . . . 1 . . Recycling Unit Hacks . | . . . . . . . . . . Scanalyzer . | . . . . . . . . . . Garrison Access Hacks 1 | . . . . . . . 1 . . Unlock Access 1 | . . . . . . . 1 . . Unauthorized Hacks 10 | . 5 . 1 . . . 2 . 2 Terminals 9 | . 4 . 1 . . . 2 . 2 Assimilate 1 | . 1 . . . . . . . . Botnet 6 | . 2 . 1 . . . 1 . 2 Skim 2 | . 1 . . . . . 1 . . Fabricators . | . . . . . . . . . . Repair Stations . | . . . . . . . . . . Recycling Units 1 | . 1 . . . . . . . . Tunnel 1 | . 1 . . . . . . . . Scanalyzers . | . . . . . . . . . . Garrison Access . | . . . . . . . . . . Data Cores Recovered . | . . . . . . . . . . Used . | . . . . . . . . . . Hacking Detections 17 | . 3 . 5 . . . 5 1 3 Full Trace Events 8 | . 1 . 5 . . . 2 . . Feedback Events . | . . . . . . . . . . Feedback Blocked . | . . . . . . . . . . Robot Schematics Acquired . | . . . . . . . . . . Robots Built . | . . . . . . . . . . Authchips . | . . . . . . . . . . Time . | . . . . . . . . . . Total Robot Build Rating . | . . . . . . . . . . Part Schematics Acquired 5 | . 1 . 3 . . . 1 . . Parts Built . | . . . . . . . . . . Authchips . | . . . . . . . . . . Time . | . . . . . . . . . . Total Part Build Rating . | . . . . . . . . . . Parts Repaired 3 | . . . 2 . . . 1 . . Time 113 | . . . 52 . . . 61 . . Parts Recycled . | . . . . . . . . . . Recycled Matter . | . . . . . . . . . . Retrieved Matter . | . . . . . . . . . . Retrieved Components . | . . . . . . . . . . Parts Scanalyzed . | . . . . . . . . . . Part Schematics Acquired . | . . . . . . . . . . Parts Damaged . | . . . . . . . . . . Bothacking | -11 -10 -10 -9 -9 -9 -8 -8 -8 -8 ------------ Run | Yrd Mat Min Mat Min Exi Min Mat Gar Sto Used RIF Installer . | . . . . . . . . . . Robots Hacked . | . . . . . . . . . . Non-combat . | . . . . . . . . . . Combat . | . . . . . . . . . . Robot Hacks Applied . | . . . . . . . . . . Relay Couplers Released 7 | . . . . . . . . 7 . Machine Destruction 7 | . . . . . . . . 7 . Fabnet Peak Effective % . | . . . . . . . . . . Robots Rewired . | . . . . . . . . . . Allies Hacked . | . . . . . . . . . . Hacks Repelled . | . . . . . . . . . . Allies | -11 -10 -10 -9 -9 -9 -8 -8 -8 -8 -------- Run | Yrd Mat Min Mat Min Exi Min Mat Gar Sto Total Allies 4 | . 1 . . 3 . . . . . Largest Group 3 | . 1 . . 3 3 . . . . Highest-Rated Group 40 | . 10 . . 40 40 . . . . Highest-Rated Ally 16 | . 10 . . 16 16 . . . . Total Orders . | . . . . . . . . . . Ally Attacks 9 | . . . . . 9 . . . . Total Damage 68 | . . . . . 68 . . . . Kills . | . . . . . . . . . . Allies Corrupted . | . . . . . . . . . . Allies Melted . | . . . . . . . . . . Intel | -11 -10 -10 -9 -9 -9 -8 -8 -8 -8 ------- Run | Yrd Mat Min Mat Min Exi Min Mat Gar Sto Robot Analysis Total 4 | . 2 . 1 . . . 1 . . Derelict Logs Recovered 3 | . . 1 . 2 . . . . . Drone Launches . | . . . . . . . . . . Drone Recoveries . | . . . . . . . . . . Exploration | -11 -10 -10 -9 -9 -9 -8 -8 -8 -8 ------------- Run | Yrd Mat Min Mat Min Exi Min Mat Gar Sto Turns Passed 6660 | 84 1210 241 1371 670 555 761 774 864 130 Spaces Moved 3248 | 48 586 156 476 396 346 313 316 387 224 Core 823 | 3 . 119 14 . . 308 80 75 224 Treads 2425 | 45 586 37 462 396 346 5 236 312 . Legs . | . . . . . . . . . . Wheels . | . . . . . . . . . . Hover . | . . . . . . . . . . Flight . | . . . . . . . . . . Fastest Speed 50 | 50 160 50 50 160 160 50 100 50 50 Average Speed 144 | 153 160 76 201 160 160 52 144 172 50 Slowest Speed 320 | 160 160 160 320 160 160 240 160 240 50 Overloaded Moves . | . . . . . . . . . . Propulsion Burnouts . | . . . . . . . . . . Robots Hopped . | . . . . . . . . . . Cave-ins Triggered . | . . . . . . . . . . Exploration Rate (%) 54 | 4 84 45 53 73 78 64 32 63 52 Regions Visited 9 Branch Regions 5 Pre-discovered Areas 3 | . 1 . . 1 1 . . . . Known Exits Taken 1 | . . . . . . . 1 . . Unknown Exits Taken 7 | 1 1 1 1 1 1 1 . . . Scrap Searched 4 | . . 1 . 2 . 1 . . . Spaces Dug 1 | . . . . . . . 1 . . Terrain Destroyed 11 | . . . . . . 10 1 . . Melee 1 | . . . . . . . 1 . . Projectile . | . . . . . . . . . . AOE 10 | . . . . . . 10 . . . Terrain Rammed . | . . . . . . . . . . Walls Destroyed . | . . . . . . . . . . Machines Disabled . | . . . . . . . . . . Actions | -11 -10 -10 -9 -9 -9 -8 -8 -8 -8 --------- Run | Yrd Mat Min Mat Min Exi Min Mat Gar Sto Total 4671 | 56 726 272 739 412 346 894 499 485 242 Wait 892 | . 27 106 111 . . 545 80 5 18 Move 3240 | 47 585 155 475 395 345 312 316 386 224 Hop . | . . . . . . . . . . Pick Up 63 | 3 13 . 21 2 . 3 15 6 . Fast Attach 32 | 6 3 . 10 1 . 1 8 3 . Attach 29 | . 4 . 7 . . 4 3 11 . Detach 2 | . . . . . . 1 1 . . Swap 29 | . 4 . 13 1 . 2 4 5 . Drop 64 | . 8 6 22 1 . 10 7 10 . Fire 264 | . 78 5 79 9 1 6 54 32 . Melee 38 | . . . . . . 6 9 23 . Ram 4 | . . . . . . 4 . . . Kick . | . . . . . . . . . . Crush 10 | . 4 . 1 3 . . 2 . . Escape Stasis 4 | . . . . . . . . 4 . Rewire . | . . . . . . . . . . Trap . | . . . . . . . . . . Miscellaneous . | . . . . . . . . . . Route ------- -11/Scrapyard -10/Materials (discovered 4 exits: *Mat x3 / [*Min]) -10/Mines -9/Materials (discovered 2 exits: *Mat / [*Min]) -9/Mines (discovered 4 exits: *Mat x2 / *Exi / [*Zio]) -9/Exiles -8/Mines -8/Materials (discovered 3 exits: *Fac / Sto / Gar) -8/Garrison (discovered 2 exits: *Sto x2) -8/Storage (discovered 1 exit: *Fac) History --------- Turn | Location | Event 15 | -11/Scrapyard | Discovered new exit (range 15) 85 | -11/Scrapyard | Entered Materials 133 | -10/Materials | Discovered new exit (range 13) 302 | -10/Materials | Build established: Mutant 304 | -10/Materials | Discovered new exit (range 13) 831 | -10/Materials | Discovered new exit (range 12) 941 | -10/Materials | Discovered new exit (range 8) 1295 | -10/Materials | Entered Mines 1307 | -10/Mines | Core integrity fell below 50% 1353 | -10/Mines | Assembled infested the area 1353 | -10/Mines | Met a Derelict bent on vengeance 1358 | -10/Mines | Assisted by a Guerilla fighting off Assembled 1395 | -10/Mines | Learned Materials emergency access door positions 1401 | -10/Mines | Discovered new exit (range 14) 1536 | -10/Mines | Entered Materials 1536 | -9/Materials | Evolved 2 slots: Utility x2 1950 | -9/Materials | Build established: Scavenger-Mutant 2090 | -9/Materials | Repaired Lgt. Treads 2118 | -9/Materials | Repaired Lgt. Treads 2186 | -9/Materials | Discovered new exit (range 3) 2691 | -9/Materials | Discovered new exit (range 6) 2907 | -9/Materials | Entered Mines 2915 | -9/Mines | Discovered new exit (range 9) 2923 | -9/Mines | Core integrity fell below 50% 2978 | -9/Mines | A Derelict revealed a hidden shortcut to a safe place 2997 | -9/Mines | Learned 2 Materials zone layouts 3106 | -9/Mines | Discovered new exit (range 7) 3133 | -9/Mines | Deemed a non-threat by the Exiles lab entrance 3133 | -9/Mines | Discovered new exit (range 5) 3240 | -9/Mines | Build established: Mutant 3280 | -9/Mines | Received a Rocket Launcher from a helpful Derelict 3335 | -9/Mines | Learned location of Storage (-8) 3471 | -9/Mines | Assisted by bots powering up and referring to "LRC-V3" 3577 | -9/Mines | Entered Exiles 3577 | -9/Exiles | Accompanied by 3 allies 3617 | -9/Exiles | Met 8R-AWN 3643 | -9/Exiles | Met EX-HEX 3699 | -9/Exiles | Build established: Scavenger-Mutant 3713 | -9/Exiles | Learned location of Zion (-7) 3715 | -9/Exiles | Met EX-DEC 3775 | -9/Exiles | Visited The Gauntlet 3870 | -9/Exiles | Met EX-BIN 3933 | -9/Exiles | Aligned with FarCom system 3934 | -9/Exiles | Given EX-Vault access code 3971 | -9/Exiles | Opened EX-Vault 4008 | -9/Exiles | Warned to stay clear of 0b10 Research branches 4097 | -9/Exiles | Attacked by the Exiles 4118 | -9/Exiles | Discovered new exit (range 10) 4132 | -9/Exiles | Entered Mines 4266 | -8/Mines | 7V-RTL came to Exiles' defense 4316 | -8/Mines | Discovered new exit (range 5) 4893 | -8/Mines | Entered Materials 4893 | -8/Materials | Evolved 2 slots: Propulsion x1, Weapon x1 4894 | -8/Materials | Identified exit to Storage 4895 | -8/Materials | Identified exit to Factory 5029 | -8/Materials | Garrison activated, responded to threat 5415 | -8/Materials | Build established: Scavenger-Gunner 5631 | -8/Materials | Repaired Broken Gauss Rifle 5650 | -8/Materials | Identified exit to Garrison 5667 | -8/Materials | Entered Garrison 5758 | -8/Garrison | Learned Storage security intel 5883 | -8/Garrison | Lost 4 parts (3n1w) 5893 | -8/Garrison | Core integrity fell below 50% 5919 | -8/Garrison | Destroyed 9 combat bots 5921 | -8/Garrison | Triggered checkpoint 5954 | -8/Garrison | Garrison Relay disabled 5995 | -8/Garrison | Triggered checkpoint 6043 | -8/Garrison | Lost 4 parts (1n1u2w) 6068 | -8/Garrison | Garrison Relay disabled 6114 | -8/Garrison | Discovered exit to Storage (range 14) 6308 | -8/Garrison | Build established: Scavenger-Mutant 6419 | -8/Garrison | Spotted B-75 Beast 6473 | -8/Garrison | Core integrity fell below 20% 6513 | -8/Garrison | Discovered exit to Storage (range 12) 6516 | -8/Garrison | Lost 6 parts (2n2u2w) 6531 | -8/Garrison | Entered Storage 6660 | -8/Storage | Discovered exit to Factory (range 20) 6661 | -8/Storage | Destroyed by G-47 Trooper with Particle Gun Last Messages --------------- Terminal linked with 0 systems. Awaiting botnet instructions. 06545_ Connecting with Terminal... >>Trojan(Botnet) Trojan loaded successfully. Testing... Terminal linked with 1 system. Awaiting botnet instructions. 06545_ Connecting with Terminal... 06592_ K-01 Serf collects debris. 06614_ T-07 Excavator suffers critical hit (Destroy). 06616_ K-01 Serf collects debris. 06637_ Critical hit (Burn: +37). 06640_ A-02 Transporter destroyed. 06653_ Triggered Blade Trap. 06653_ Massive razor-sharp blades shoot up from within the floor. 06653_ Med. Treads severed. 06660_ EXIT=FOUND: FACTORY Map ----- +----------------------------------------------------+ | ???# #############??????# #????????????????????? | | ???# #??????# ###??????????????????? | | ???# +??????# ???????????????????? | | ???# ####### #??????# #????????????????????? | | ???# #?????# #??????# #????????????????????? | | ???# #?????# ######## #????????????????????? | | ???# #?????# #????????????????????? | | ???# #######+## ######T##g #????????????????????? | | ???# / [[*# #???####g #????????????????????? | | ???#+### "T"%[####??????#gu #????????????????????? | | ???????# =[= #????????# g +????????????????????? | | ???????# %##????????# #????????????????????? | | ???????# #?????????#= #????????????????????? | | ???????# #?###?????# r #????????????????????? | | ???????########?#"""????# #????????????????????? | | ????????????????#""R"???# #????????????????????? | | ??????????????###"" "##?# #????????????????????? | | ??????????????# ?# #????????????????????? | | ?????????????## #a #????????????????????? | | ?????????????"" # g #????????????????????? | | ????????????????""" """ + #????????????????????? | | ????????????????""" """ # #????????????????????? | | ????????????????""" """ # #????????????????????? | | ??????????????? ?# #????????????????????? | | ?????????????? ?# #????????????????????? | | ??????????????##+########@ #####+#####??????????? | | ????????? Y ?? | | ?????????< ?? | | ????????? ?? | | ?????????###" "###"T"################### ??? | | ?????????????????###???????????????????????? ??? | | ?????????????????????????????????????????????????? | | ?????????????????????????????????????????????????? | | ?????????????????????????????????????????????????? | | | | | | | | | | | | | | | | | | | | | | | | | | | | | | | | | +----------------------------------------------------+ Best States ------------- Heat Dissipation 45 Energy Generation 17 Energy Capacity 300 Matter Stores 300 Matter Capacity 300 Sight Range 20 Terrain Scan Density 10 Armor Coverage 450 Evasion (%) 50 Targeting Accuracy 5 Recoil Reduction 3 Offensive Hacking 10 Item Schematics ----------------- Flight Unit | -10/Materials | Hacked Targeting Computer | -9/Materials | Hacked Lgt. Assault Rifle | -9/Materials | Hacked Seismic Detector | -9/Materials | Hacked Lgt. Ion Engine | -8/Materials | Hacked Robot Schematics ------------------ None Fabricated ------------ Nothing Alien Tech Used ----------------- None Achievements -------------- None Challenges ------------ None Game ------ Seed BottomlessDecoderMask Manual? 0 Play Time 00:33:52 Cumulative 943.3 hours Start 2025.04.11 @ 22:46:11 End 2025.04.11 @ 23:19:36 Sessions 1 Manual Loads 0 Difficulty Rogue Special Mode None Game No. 579 Rogue 572 Adventurer 0 Explorer 7 Win Type - Total 64 Types 23/6/23/2/0/1/6/1/2 Lore% 88 Gallery% 95 Achievement% 85 Wizard Run 0 Options --------- Layout 1 ASCII 0 Keyboard 0 Movement Numpad Keybinds 0 Fullscreen 1 Font 24/Smallcaps Map View 50x35 Zoom Use 0% Tactical HUD 1 Map Filters NONE Filters NONE Steam 1 RUN: 157b8891-c298-4d48-9ebb-52f54fd20c28